bitfinex-derivatives/quotes_SOLF0:USTF0_20241208
["timestamp","ask_amount","ask_price","bid_price","bid_amount"]
[1733648744583,10.71590477,235.64,235.53,10.36522723]
[1733648744878,2.1204,235.64,235.53,10.36522723]
[1733648745790,2.1202,235.66,235.56,10.36522723]
[1733648746382,2.1202,235.66,235.57,2.02]
[1733648746685,2.1201,235.67,235.57,2.02]
[1733648746889,10.72065597,235.66,235.57,2.02]
[1733648747190,2.02,235.68,235.57,2.02]
[1733648747385,4.1401,235.68,235.57,2.02]
[1733648747884,2.02,235.68,235.57,2.02]
[1733648748087,2.1201,235.67,235.57,2.02]
[1733648750092,10.36522723,235.71,235.57,2.02]
[1733648750284,10.73643199,235.7,235.59,10.36522723]
[1733648750486,10.73643199,235.69,235.59,10.36522723]
[1733648750686,10.73643199,235.7,235.65,2.1203]
[1733648750887,10.73643199,235.69,235.59,10.36522723]
[1733648751087,3.3225,235.73,235.59,10.36522723]
[1733648751282,3.3225,235.73,235.67,2.1201]
[1733648752086,5.4421,235.73,235.67,2.1201]
[1733648752286,2.02,235.73,235.69,2.1199]
[1733648752491,2.02,235.73,235.62,12.38522723]
[1733648752790,2.02,235.76,235.62,12.38522723]
[1733648752988,10.7367022,235.75,235.62,12.38522723]
[1733648753189,2.02,235.76,235.62,12.38522723]
[1733648753386,12.85416289,235.75,235.62,12.38522723]
[1733648753592,2.1194,235.75,235.62,12.38522723]
[1733648753885,12.38522723,235.77,235.65,10.36522723]
[1733648754090,12.85193648,235.76,235.7,2.1198]
[1733648754287,2.1193,235.76,235.7,2.1198]
[1733648755493,2.1193,235.76,235.65,10.36522723]
[1733648755991,2.1194,235.75,235.65,10.36522723]
[1733648756388,2.1194,235.75,235.7,2.1198]
[1733648758195,18.12896682,235.74,235.7,2.1198]
[1733648758393,10.72738133,235.73,235.71,2.1197]
[1733648758592,10.72738133,235.72,235.71,2.1197]
[1733648762998,6.63607272,235.75,235.71,2.1197]
[1733648763192,6.63607272,235.75,235.61,1.2695]
[1733648763193,10.72768914,235.74,235.61,1.2695]
[1733648763390,17.36376186,235.73,235.66,6.63607272]
[1733648763597,10.72768914,235.72,235.68,6.63607272]
[1733648763791,6.63607272,235.75,235.68,6.63607272]
[1733648763995,10.72774954,235.74,235.68,6.63607272]
[1733648764192,10.72774954,235.73,235.68,6.63607272]
[1733648764398,6.63607272,235.75,235.7,2.1198]
[1733648764599,10.72851429,235.74,235.68,6.63607272]
[1733648764798,10.72851429,235.73,235.68,6.63607272]
[1733648764999,6.63607272,235.75,235.68,6.63607272]
[1733648765397,6.63607272,235.75,235.7,2.1199]
[1733648765798,6.63607272,235.75,235.68,6.63607272]
[1733648765999,6.63607272,235.75,235.71,2.1198]
[1733648767702,6.63607272,235.75,235.72,2.1197]
[1733648769600,6.63607272,235.73,235.67,2.0]
[1733648769796,2.0,235.79,235.61,1.2695]
[1733648769797,6.63607272,235.71,235.63,6.63607272]
[1733648770004,6.63607272,235.69,235.63,6.63607272]
[1733648770204,6.63607272,235.69,235.66,2.1202]
[1733648771304,6.63607272,235.71,235.67,2.1201]
[1733648774301,6.63607272,235.74,235.67,6.63607272]
[1733648774703,6.63607272,235.74,235.71,2.1198]
[1733648776008,8.75537272,235.76,235.71,2.1198]
[1733648776605,6.63607272,235.76,235.72,2.1197]
[1733648777204,8.75527272,235.78,235.74,2.1195]
[1733648777901,2.638,235.86,235.71,6.63607272]
[1733648778107,6.63607272,235.8,235.73,6.63607272]
[1733648778607,6.63607272,235.8,235.76,2.1192]
[1733648779006,6.63607272,235.8,235.72,8.63607272]
[1733648779208,6.63607272,235.78,235.75,2.1194]
[1733648779605,6.63607272,235.76,235.69,8.63607272]
[1733648779803,6.63607272,235.74,235.69,2.0]
[1733648780407,6.63607272,235.74,235.7,2.1198]
[1733648782113,2.1195,235.75,235.71,2.1198]
[1733648783018,2.1195,235.74,235.69,10.75597272]
[1733648783211,2.1195,235.74,235.69,8.63607272]
[1733648784714,6.63607272,235.76,235.69,8.63607272]
[1733648784915,9.5142797,235.75,235.69,8.63607272]
[1733648785106,2.1194,235.75,235.69,8.63607272]
[1733648785706,2.1194,235.75,235.71,2.1197]
[1733648786515,2.1191,235.78,235.74,2.1195]
[1733648786711,7.39567273,235.77,235.73,6.63607272]
[1733648786915,7.39567273,235.76,235.73,6.63607272]
[1733648787116,2.1191,235.79,235.74,2.1194]
[1733648787314,7.39680315,235.78,235.73,6.63607272]
[1733648787513,2.0,235.82,235.78,2.1191]
[1733648787514,8.63607272,235.82,235.78,2.1191]
[1733648787711,7.39495803,235.81,235.78,2.1191]
[1733648787912,2.638,235.86,235.77,6.63607272]
[1733648788118,8.75477272,235.84,235.77,6.63607272]
[1733648790225,8.75457272,235.86,235.79,6.63607272]
[1733648790720,2.1186,235.85,235.79,6.63607272]
[1733648791119,2.0,235.87,235.79,6.63607272]
[1733648791418,6.63607272,235.86,235.79,6.63607272]
[1733648792618,8.75447272,235.86,235.81,2.1189]
[1733648793218,8.75447272,235.86,235.82,2.1188]
[1733648793524,4.1183,235.87,235.81,6.63607272]
[1733648793720,2.0,235.87,235.81,6.63607272]
[1733648793918,6.63607272,235.88,235.84,2.1185]
[1733648794120,2.53848,235.9,235.81,6.63607272]
[1733648794322,6.63607272,235.89,235.81,6.63607272]
[1733648794721,6.63607272,235.89,235.83,6.63607272]
[1733648795122,2.53848,235.9,235.83,6.63607272]
[1733648795923,0.42038,235.9,235.83,6.63607272]
[1733648796126,0.42038,235.9,235.85,6.63607272]
[1733648796321,0.42038,235.9,235.87,2.1182]
[1733648796627,0.42038,235.9,235.87,6.63607272]
[1733648797028,0.42038,235.9,235.88,2.1182]
[1733648797223,0.42038,235.9,235.88,8.75427272]
[1733648799029,0.42038,235.9,235.84,8.75457272]
[1733648799428,7.05645272,235.9,235.84,8.75457272]
[1733648799824,6.63607272,235.88,235.82,8.75477272]
[1733648800031,6.63607272,235.88,235.8,9.91637272]
[1733648800330,2.1185,235.85,235.78,6.63607272]
[1733648800532,6.63607272,235.86,235.78,6.63607272]
[1733648800731,6.63607272,235.88,235.8,6.63607272]
[1733648800931,2.1184,235.86,235.8,6.63607272]
[1733648801825,2.1184,235.86,235.8,8.75507272]
[1733648802635,2.1186,235.85,235.79,2.119]
[1733648802827,6.63607272,235.84,235.77,6.63607272]
[1733648803634,2.1187,235.83,235.77,8.75517272]
[1733648803835,2.1187,235.83,235.77,6.63607272]
[1733648804235,2.42038,235.9,235.81,6.63607272]
[1733648804436,9.05645272,235.9,235.83,6.63607272]
[1733648805133,0.42038,235.9,235.83,6.63607272]
[1733648805331,7.05645272,235.9,235.83,6.63607272]
[1733648805539,0.42038,235.9,235.85,6.63607272]
[1733648805738,2.53848,235.9,235.85,8.75447272]
[1733648806132,7.05645272,235.9,235.83,6.63607272]
[1733648806333,7.05645272,235.9,235.81,2.0]
[1733648806334,7.05645272,235.9,235.81,8.63607272]
[1733648806530,0.42038,235.9,235.85,6.63607272]
[1733648806734,0.42038,235.9,235.81,2.0]
[1733648806936,0.42038,235.9,235.83,6.63607272]
[1733648807236,0.42038,235.9,235.85,6.63607272]
[1733648807438,8.63607272,235.91,235.85,6.63607272]
[1733648807938,2.1181,235.9,235.85,2.1185]
[1733648808731,8.63607272,235.91,235.83,8.75467272]
[1733648808732,2.1182,235.89,235.83,8.75467272]
[1733648809240,6.63607272,235.89,235.83,8.75467272]
[1733648809641,8.63607272,235.91,235.83,6.63607272]
[1733648810136,2.1179,235.92,235.86,2.1184]
[1733648810340,4.1179,235.92,235.85,6.63607272]
[1733648811236,4.1179,235.92,235.87,8.75437272]
[1733648811437,2.1178,235.93,235.87,6.63607272]
[1733648811839,6.63607272,235.95,235.88,2.1182]
[1733648812041,6.63607272,235.95,235.87,6.63607272]
[1733648812234,6.63607272,235.95,235.89,6.63607272]
[1733648812439,6.63607272,235.95,235.9,2.118]
[1733648812739,2.1176,235.95,235.89,6.63607272]
[1733648812936,2.0,235.96,235.91,2.1179]
[1733648813142,8.75357272,235.97,235.89,6.63607272]
[1733648813333,6.63607272,235.97,235.89,6.63607272]
[1733648814239,2.1174,235.98,235.92,2.1179]
[1733648814444,6.63607272,235.98,235.91,6.63607272]
[1733648815337,2.1175,235.97,235.92,2.1179]
[1733648815943,6.63607272,235.98,235.91,2.1179]
[1733648816145,6.63607272,235.98,235.91,8.75397272]
[1733648816340,6.63607272,235.96,235.88,6.63607272]
[1733648816638,6.63607272,235.94,235.87,2.0]
[1733648816844,6.63607272,235.94,235.87,8.63607272]
[1733648817043,2.1178,235.93,235.89,2.1181]
[1733648817444,2.1178,235.93,235.87,8.63607272]
[1733648817845,2.1178,235.93,235.88,2.1182]
[1733648818243,2.1179,235.92,235.87,8.63607272]
[1733648819243,6.63607272,235.94,235.89,6.63607272]
[1733648819244,2.1178,235.93,235.89,6.63607272]
[1733648820352,2.1176,235.96,235.9,2.118]
[1733648820545,2.1176,235.96,235.91,6.63607272]
[1733648820739,2.0,235.97,235.91,6.63607272]
[1733648820942,6.63607272,235.98,235.91,6.63607272]
[1733648821240,8.75347272,235.98,235.93,2.1178]
[1733648822447,2.1174,235.97,235.92,2.1179]
[1733648822651,6.63607272,235.96,235.89,6.63607272]
[1733648822850,6.63607272,235.94,235.87,8.63607272]
[1733648823154,2.1178,235.93,235.88,2.1182]
[1733648823345,6.63607272,235.94,235.87,8.63607272]
[1733648823546,6.63607272,235.94,235.87,6.63607272]
[1733648824647,2.1179,235.92,235.87,8.75437272]
[1733648825149,6.63607272,235.92,235.85,2.0]
[1733648825651,6.63607272,235.92,235.84,6.63607272]
[1733648827147,2.118,235.91,235.86,6.63607272]
[1733648827351,6.63607272,235.94,235.86,6.63607272]
[1733648827553,6.63607272,235.94,235.88,6.63607272]
[1733648827953,2.1178,235.93,235.89,2.1181]
[1733648830145,2.1177,235.94,235.89,2.1181]
[1733648830950,2.1177,235.94,235.89,8.75417272]
[1733648831661,8.63607272,235.96,235.87,2.1183]
[1733648831662,6.63607272,235.9,235.87,2.1183]
[1733648831948,6.63607272,235.88,235.8,1.3173]
[1733648832149,8.75417272,235.9,235.83,2.1186]
[1733648832457,6.63607272,235.92,235.84,6.63607272]
[1733648832955,6.63607272,235.94,235.88,6.63607272]
[1733648833457,6.63607272,235.94,235.86,6.63607272]
[1733648834445,8.63607272,235.96,235.88,6.63607272]
[1733648834955,6.63607272,235.98,235.91,2.1179]
[1733648835151,7.40171263,235.97,235.91,2.1179]
[1733648835351,6.63607272,235.98,235.91,2.1179]
[1733648835551,9.51980945,235.97,235.91,2.1179]
[1733648835753,2.1174,235.97,235.92,2.1179]
[1733648835954,6.63607272,235.98,235.92,2.1179]
[1733648836158,7.95657272,236.0,235.92,6.63607272]
[1733648836359,2.1173,235.98,235.93,2.1177]
[1733648838557,10.07377272,236.0,235.94,2.1177]
[1733648838755,7.95657272,236.0,235.94,2.1177]
[1733648839154,0.77267,236.04,235.94,2.1177]
[1733648839359,2.1173,235.99,235.95,2.1176]
[1733648839973,8.75347272,235.98,235.93,2.1177]
[1733648840258,6.63607272,235.94,235.88,2.0]
[1733648840458,6.63607272,235.94,235.87,6.63607272]
[1733648840658,8.75407272,235.92,235.87,2.1182]
[1733648841260,6.63607272,235.94,235.87,6.63607272]
[1733648841458,8.75387272,235.94,235.88,2.1182]
[1733648841656,8.75387272,235.94,235.87,6.63607272]
[1733648841862,6.63607272,235.94,235.89,2.1181]
[1733648842057,6.63607272,235.96,235.89,6.63607272]
[1733648842254,8.63607272,235.98,235.91,6.63607272]
[1733648842756,8.63607272,235.98,235.89,6.63607272]
[1733648842757,6.63607272,235.96,235.89,6.63607272]
[1733648843659,2.1178,235.94,235.89,8.75417272]
[1733648843859,6.63607272,235.94,235.87,6.63607272]
[1733648844061,2.1179,235.92,235.87,6.63607272]
[1733648844261,8.75397272,235.92,235.86,2.1184]
[1733648844457,8.75397272,235.92,235.85,8.63607272]
[1733648845464,2.1178,235.93,235.87,2.1183]
[1733648845664,2.1178,235.93,235.87,8.75437272]
[1733648846662,2.1178,235.93,235.85,2.0]
[1733648846867,2.1178,235.93,235.88,2.1182]
[1733648847867,2.1177,235.95,235.85,2.0]
[1733648848164,1.3205,235.97,235.87,10.35251298]
[1733648848463,2.0,236.0,235.87,10.35251298]
[1733648848862,2.1173,235.98,235.93,2.1177]
[1733648849066,2.0,236.0,235.9,2.0]
[1733648849664,2.1173,235.99,235.94,2.1177]
[1733648850165,12.35251298,236.02,235.95,2.1176]
[1733648850665,2.1172,236.0,235.95,2.1176]
[1733648852265,12.35251298,236.02,235.91,2.0]
[1733648852463,2.1173,235.98,235.94,2.1177]
[1733648855769,2.0,236.0,235.91,2.0]
[1733648856066,2.1174,235.97,235.93,2.1178]
[1733648857265,2.1173,235.99,235.91,2.0]
[1733648857469,7.41408513,235.98,235.91,2.0]
[1733648857668,2.1173,235.99,235.91,2.0]
[1733648857873,7.41389599,235.98,235.96,2.1175]
[1733648858067,2.0,236.01,235.96,2.1175]
[1733648858264,2.0,236.01,235.91,2.0]
[1733648858265,7.41366107,236.0,235.97,2.1174]
[1733648858467,7.41366107,235.99,235.97,2.1174]
[1733648858672,2.0,236.04,235.97,2.1174]
[1733648858871,7.41334469,236.03,235.97,2.1174]
[1733648859173,7.41334469,236.02,235.97,2.1174]
[1733648859472,7.41334469,236.01,235.97,2.1174]
[1733648859667,7.41334469,236.0,235.97,2.1174]
[1733648859875,7.41334469,235.99,235.97,2.1174]
[1733648860072,2.1171,236.01,235.97,2.1174]
[1733648860270,7.41195525,236.0,235.97,2.1174]
[1733648860470,7.41195525,235.99,235.97,2.1174]
[1733648860672,2.1171,236.01,235.97,2.1174]
[1733648860870,7.4117476,236.0,235.97,2.1174]
[1733648861074,7.4117476,235.99,235.97,2.1174]
[1733648861368,2.1171,236.01,235.97,2.1174]
[1733648861565,7.41102846,236.0,235.97,2.1174]
[1733648861769,7.41102846,235.99,235.97,2.1174]
[1733648861966,2.1171,236.01,235.97,2.1174]
[1733648862165,7.41098411,236.0,235.97,2.1174]
[1733648862473,2.1171,236.01,235.97,2.1174]
[1733648862674,7.41049703,236.0,235.97,2.1174]
[1733648862976,2.1171,236.01,235.97,2.1174]
[1733648863680,2.0,236.07,235.96,10.35251298]
[1733648863875,2.0,236.07,235.96,12.35251298]
[1733648863876,7.40899356,236.06,235.96,12.35251298]
[1733648864176,2.0,236.07,235.96,12.35251298]
[1733648864177,9.52569356,236.05,236.01,2.117]
[1733648864365,2.0,236.09,235.99,10.35251298]
[1733648864568,7.4074589,236.08,235.99,10.35251298]
[1733648864771,9.5240589,236.07,236.03,2.1169]
[1733648865073,2.1166,236.07,235.99,10.35251298]
[1733648866173,2.94081,236.1,235.99,10.35251298]
[1733648866374,9.51963372,236.09,236.03,2.1168]
[1733648866670,2.94081,236.1,236.01,2.0]
[1733648867570,2.1165,236.08,236.02,2.117]
[1733648868471,2.1165,236.08,236.03,2.1169]
[1733648868771,2.1165,236.08,236.01,2.0]
[1733648868772,2.1165,236.08,236.04,6.61671228]
[1733648869373,3.05711,236.1,236.05,2.1167]
[1733648871075,9.50785062,236.09,236.05,2.1167]
[1733648871370,2.1164,236.09,236.05,2.1167]
[1733648871769,0.94081,236.1,236.04,6.61671228]
[1733648871974,7.38986709,236.09,236.04,6.61671228]
[1733648872176,0.94081,236.1,236.04,6.61671228]
[1733648872374,2.1165,236.08,236.06,6.61671228]
[1733648872580,0.94081,236.1,236.06,6.61671228]
[1733648873477,0.94081,236.1,236.06,8.73321228]
[1733648874684,3.05711,236.1,236.06,8.73321228]
[1733648876173,0.94081,236.1,236.06,6.61671228]
[1733648876678,0.94081,236.1,236.01,2.0]
[1733648876878,0.94081,236.1,236.04,6.61671228]
[1733648878273,2.1165,236.07,236.04,6.61671228]
[1733648878579,0.94081,236.1,236.06,6.61671228]
[1733648878782,2.1164,236.09,236.06,6.61671228]
[1733648878978,2.1164,236.09,236.0,2.0]
[1733648878979,0.94081,236.1,236.08,6.61671228]
[1733648879284,0.94081,236.1,236.09,6.61671228]
[1733648880278,0.94081,236.1,236.09,8.73311228]
[1733648880976,0.94081,236.1,236.09,6.61671228]
[1733648884088,0.94081,236.1,236.09,8.73301228]
[1733648885189,2.1158,236.15,236.1,2.1162]
[1733648885385,2.1158,236.15,236.11,6.61671228]
[1733648885984,8.61671228,236.17,236.1,2.1162]
[1733648886186,6.61671228,236.15,236.07,6.61671228]
[1733648886384,6.61671228,236.15,236.09,6.61671228]
[1733648886586,2.1161,236.12,236.09,6.61671228]
[1733648887178,2.116,236.14,236.09,6.61671228]
[1733648887587,8.61671228,236.17,236.09,6.61671228]
[1733648887888,2.1159,236.14,236.09,6.61671228]
[1733648888182,8.61671228,236.17,236.11,6.61671228]
[1733648888388,2.1159,236.14,236.11,6.61671228]
[1733648888583,2.1159,236.14,236.09,6.61671228]
[1733648888789,8.61671228,236.17,236.09,6.61671228]
[1733648889190,7.36348459,236.16,236.09,6.61671228]
[1733648889387,8.61671228,236.17,236.09,6.61671228]
[1733648889790,7.36257141,236.16,236.09,6.61671228]
[1733648889989,8.61671228,236.17,236.09,6.61671228]
[1733648890291,8.61671228,236.17,236.09,8.73301228]
[1733648890292,2.116,236.13,236.09,8.73301228]
[1733648895891,2.116,236.13,236.09,2.1163]
[1733648896092,2.116,236.13,236.11,6.61671228]
[1733648900001,2.116,236.13,236.09,8.73301228]
[1733648902296,2.116,236.13,236.1,2.1163]
[1733648903798,2.116,236.13,236.09,8.73301228]
[1733648904300,2.1162,236.11,236.09,6.61671228]
[1733648904499,6.61671228,236.15,236.09,6.61671228]
[1733648904802,7.38621425,236.14,236.09,6.61671228]
[1733648904997,7.38621425,236.13,236.09,6.61671228]
[1733648905397,6.61671228,236.15,236.09,6.61671228]
[1733648905398,2.1161,236.12,236.09,6.61671228]
[1733648909493,8.61671228,236.17,236.09,6.61671228]
[1733648909697,8.61671228,236.17,236.09,8.73301228]
[1733648909893,8.61671228,236.17,236.09,6.61671228]
[1733648911104,2.116,236.14,236.1,2.1162]
[1733648912097,2.116,236.14,236.11,2.1162]
[1733648913301,2.116,236.14,236.1,2.1163]
[1733648918106,8.61671228,236.17,236.1,2.1163]
[1733648918306,2.116,236.13,236.1,2.1163]
[1733648922719,2.116,236.13,236.09,2.1163]
[1733648923717,2.1162,236.11,236.07,8.73321228]
[1733648923917,2.1162,236.11,236.07,2.1165]
[1733648924117,6.61671228,236.15,236.06,6.61671228]
[1733648924317,6.61671228,236.13,236.06,6.61671228]
[1733648924518,2.1163,236.1,236.06,6.61671228]
[1733648925319,2.1162,236.12,236.07,2.1165]
[1733648925511,7.41264077,236.11,236.07,2.1165]
[1733648925716,6.61671228,236.13,236.07,2.1165]
[1733648925912,7.41260996,236.12,236.07,2.1165]
[1733648926114,7.41260996,236.11,236.07,2.1165]
[1733648926315,6.61671228,236.13,236.07,2.1165]
[1733648926515,7.41267951,236.12,236.08,6.61671228]
[1733648926711,7.41267951,236.11,236.08,6.61671228]
[1733648926916,7.41267951,236.14,236.08,6.61671228]
[1733648927219,2.1161,236.12,236.08,6.61671228]
[1733648927912,6.61671228,236.15,236.08,6.61671228]
[1733648927913,2.116,236.13,236.08,6.61671228]
[1733648928117,7.41273428,236.12,236.08,6.61671228]
[1733648928318,6.61671228,236.15,236.08,6.61671228]
[1733648928617,7.41271867,236.14,236.08,6.61671228]
[1733648928822,7.41271867,236.13,236.08,6.61671228]
[1733648929016,7.41271867,236.12,236.08,6.61671228]
[1733648929218,2.116,236.13,236.08,8.73311228]
[1733648929419,7.41282052,236.12,236.08,8.73311228]
[1733648929719,6.61671228,236.15,236.08,8.73311228]
[1733648929920,2.1161,236.12,236.08,8.73311228]
[1733648931324,2.1161,236.12,236.08,2.1164]
[1733648934123,2.116,236.13,236.09,2.1163]
[1733648934917,2.1158,236.16,236.11,8.73291228]
[1733648935119,8.61671228,236.19,236.11,8.73291228]
[1733648935324,7.41300012,236.18,236.11,2.1162]
[1733648935516,2.1159,236.15,236.11,2.1162]
[1733648936115,2.1159,236.14,236.1,6.61671228]
[1733648937230,6.61671228,236.15,236.05,2.6471]
[1733648937423,2.116,236.13,236.08,6.61671228]
[1733648938030,6.61671228,236.15,236.08,6.61671228]
[1733648938226,2.1159,236.14,236.09,2.1163]
[1733648940624,6.61671228,236.15,236.09,2.1163]
[1733648940625,2.116,236.13,236.09,2.1163]
[1733648941025,6.61671228,236.15,236.09,2.1163]
[1733648941626,2.116,236.13,236.09,2.1163]
[1733648941928,6.61671228,236.15,236.07,8.73321228]
[1733648942133,6.61671228,236.15,236.07,6.61671228]
[1733648943224,8.61671228,236.15,236.07,6.61671228]
[1733648943628,2.116,236.13,236.08,2.1164]
[1733648945334,2.116,236.13,236.07,6.61671228]
[1733648945534,2.116,236.13,236.09,2.1163]
[1733648945933,7.41527769,236.12,236.09,2.1163]
[1733648946228,2.116,236.13,236.09,2.1163]
[1733648946431,7.41534921,236.12,236.09,2.1163]
[1733648946630,2.1159,236.14,236.09,2.1163]
[1733648946836,7.41446799,236.13,236.07,6.61671228]
[1733648947131,7.41446799,236.12,236.1,2.1162]
[1733648947331,2.1159,236.14,236.1,2.1162]
[1733648947530,7.41401782,236.13,236.1,2.1162]
[1733648947731,7.41401782,236.13,236.07,6.61671228]
[1733648947732,7.41401782,236.12,236.09,2.1163]
[1733648947931,2.1159,236.14,236.09,2.1163]
[1733648948133,7.41479721,236.13,236.09,2.1163]
[1733648948334,7.41479721,236.12,236.09,2.1163]
[1733648948536,2.1159,236.14,236.09,2.1163]
[1733648948729,7.41631914,236.13,236.09,2.1163]
[1733648948929,7.41631914,236.12,236.09,2.1163]
[1733648949237,2.1159,236.14,236.09,2.1163]
[1733648949433,7.41752601,236.13,236.09,2.1163]
[1733648949637,7.41752601,236.12,236.09,2.1163]
[1733648949835,2.1159,236.14,236.09,2.1163]
[1733648950034,7.41826811,236.13,236.09,2.1163]
[1733648950442,7.41826811,236.12,236.07,2.1165]
[1733648950642,7.41826811,236.12,235.98,84.99532398]
[1733648950643,6.61671228,236.11,236.01,2.0]
[1733648950842,7.41826811,236.1,236.04,6.61671228]
[1733648951338,7.41826811,236.1,236.06,2.1165]
[1733648953442,7.41826811,236.1,236.05,2.1167]
[1733648953443,16.15128039,236.1,236.05,2.1167]
[1733648953643,7.42037928,236.09,236.05,2.1167]
[1733648953844,8.61671228,236.1,236.01,2.0]
[1733648954142,6.61671228,236.08,236.01,6.61671228]
[1733648954337,2.1166,236.07,236.02,2.117]
[1733648954538,6.61671228,236.08,235.98,3.2661]
[1733648954738,6.61671228,236.06,236.01,2.1171]
[1733648955743,2.1167,236.05,236.0,2.1171]
[1733648959547,6.61671228,236.04,236.0,2.1171]
[1733648959939,4.1167,236.05,236.0,2.1171]
[1733648960139,4.1167,236.05,236.01,2.117]
[1733648962543,2.1169,236.03,235.98,2.1173]
[1733648962737,6.61671228,236.04,235.98,6.61671228]
[1733648963145,2.0,236.05,235.98,6.61671228]
[1733648963334,6.61671228,236.04,235.98,6.61671228]
[1733648963737,8.73351228,236.04,235.99,2.1172]
[1733648965840,6.61671228,236.02,235.97,2.1174]
[1733648966036,6.61671228,236.02,235.95,6.61671228]
[1733648966237,2.1169,236.03,235.97,6.61671228]
[1733648966638,2.0,236.05,235.99,6.61671228]
[1733648967645,2.0,236.05,236.01,2.117]
[1733648968442,6.61671228,236.04,236.01,2.117]
[1733648968638,6.61671228,236.04,235.97,6.61671228]
[1733648968833,6.61671228,236.04,235.99,2.1172]
[1733648969746,8.73351228,236.04,235.99,2.1172]
[1733648970135,6.61671228,236.04,235.97,6.61671228]
[1733648970338,2.0,236.05,235.94,6.61671228]
[1733648970339,6.61671228,236.0,235.94,6.61671228]
[1733648970539,6.61671228,236.0,235.92,6.61671228]
[1733648970741,8.61671228,236.0,235.92,6.61671228]
[1733648971138,2.1174,235.98,235.92,2.1178]
[1733648971341,8.61671228,236.0,235.91,83.76062974]
[1733648971635,8.61671228,236.0,235.91,90.37734202]
[1733648971840,8.61671228,236.0,235.93,2.1178]
[1733648972039,8.61671228,236.0,235.84,1.3812]
[1733648972040,6.61671228,235.98,235.84,1.3812]
[1733648972243,2.1177,235.95,235.9,2.118]
[1733648972546,6.61671228,235.96,235.89,6.61671228]
[1733648973235,2.1176,235.95,235.85,2.0]
[1733648973438,6.61671228,235.94,235.85,2.0]
[1733648973637,6.61671228,235.94,235.88,6.61671228]
[1733648974036,2.0,235.95,235.88,6.61671228]
[1733648974238,2.0,235.95,235.91,2.118]
[1733648974434,2.0,235.96,235.9,6.61671228]
[1733648975142,2.0,235.96,235.93,2.1177]
[1733648975338,2.0,235.96,235.9,6.61671228]
[1733648975543,8.61671228,235.96,235.9,6.61671228]
[1733648976045,8.61671228,235.96,235.93,2.1178]
[1733648977247,8.61671228,235.96,235.9,6.61671228]
[1733648977445,8.61671228,235.96,235.91,2.1179]
[1733648977746,8.61671228,235.96,235.9,6.61671228]
[1733648978137,8.61671228,235.96,235.92,2.1178]
[1733648978138,10.73421228,235.96,235.92,2.1178]
[1733648979950,8.61671228,235.96,235.92,2.1178]
[1733648981043,10.73421228,235.96,235.92,2.1178]
[1733648983050,10.73421228,235.96,235.91,2.1179]
[1733648984643,6.61671228,235.94,235.91,2.1179]
[1733648985050,6.61671228,235.94,235.86,6.61671228]
[1733648985351,6.61671228,235.94,235.89,2.1181]
[1733648986052,6.61671228,235.92,235.89,2.1181]
[1733648987152,6.61671228,235.94,235.89,2.1181]
[1733648987352,6.61671228,235.94,235.91,2.118]
[1733648987851,6.61671228,235.94,235.9,2.118]
[1733648990055,6.61671228,235.94,235.84,2.7243]
[1733648990251,6.61671228,235.9,235.84,2.7243]
[1733648990551,6.61671228,235.9,235.84,7.95981228]
[1733648990950,6.61671228,235.9,235.84,6.61671228]
[1733648991651,2.1181,235.89,235.85,2.1185]
[1733648992051,6.61671228,235.9,235.85,2.1185]
[1733648992849,6.61671228,235.88,235.8,83.7970502]
[1733648993051,6.61671228,235.86,235.8,85.7970502]
[1733648994151,6.61671228,235.84,235.8,85.7970502]
[1733648994555,6.61671228,235.84,235.8,83.7970502]
[1733648994750,6.61671228,235.84,235.82,2.1187]
[1733648995646,8.73531228,235.84,235.8,83.7970502]
[1733648995845,6.61671228,235.84,235.8,83.7970502]
[1733648996451,2.0,235.85,235.81,2.1188]
[1733648996651,2.0,235.85,235.8,83.7970502]
[1733648997051,2.0,235.89,235.83,6.61671228]
[1733648997246,6.61671228,235.9,235.83,6.61671228]
[1733648998952,3.5021,235.95,235.85,6.61671228]
[1733648999253,2.0,235.95,235.87,6.61671228]
[1733648999463,6.61671228,235.95,235.89,6.61671228]
[1733648999655,2.0,235.97,235.91,6.61671228]
[1733649000451,2.0,235.97,235.94,2.1177]